Cogmind - Beta 10.2 @@@ ROGUE MODE // 2022.02.04 @ 09:41:20 Player: Conner Result: Destroyed by G-47 Trooper with Particle Gun Performance ------------- Evolutions (0) 0 Regions Visited (2) 400 Robots Destroyed (12) 60 Value Destroyed (241) 241 Prototype IDs (0) 0 Alien Tech Used (0) 0 Bonus (0) 0 TOTAL SCORE: 701 Bonus ------- None Cogmind --------- Core Integrity 0/250 Matter 300/300 Energy 246/250 System Corruption 0% Temperature Cool (9) Movement Rolling (90) Ox1 Location -10/Mines Parts ------- > --- POWER (1) -------- Ion Engine > --- PROPULSION (2) --- Wheel Wheel > --- UTILITY (2) ------ Improved Heat Sink Large Storage Unit > --- WEAPON (2) ------- (None) > --- INVENTORY (10) --- Light Ion Engine Light Ion Engine Compact Wheel Compact Wheel Heat Sink Large Storage Unit Large Storage Unit Large Storage Unit Large Storage Unit Peak State ------------ > --- POWER ------------ Light Ion Engine > --- PROPULSION ------- Wheel Wheel > --- UTILITY ---------- Improved Heat Sink Large Storage Unit > --- WEAPON ----------- Datajack Welding Torch > --- INVENTORY -------- Ion Engine Light Ion Engine Wheel Compact Wheel Compact Wheel Heat Sink Large Storage Unit Large Storage Unit Large Storage Unit Large Storage Unit [Rating: 10] Favorites ----------- Power Ion Engine Engine Ion Engine Propulsion Wheel Wheel Wheel Utility Large Storage Unit Device Improved Heat Sink Storage Large Storage Unit Weapon Datajack Energy Gun Small Laser Ballistic Gun Light Assault Rifle Special Weapon Mining Laser Special Melee Weapon Datajack Build | -11 -10 -10 ------- Run | Scr Mat Min Slots Evolved . | . . . Power . | . . . Propulsion . | . . . Utility . | . . . Weapon . | . . . Parts Attached 28 | 8 18 2 Power 5 | 1 4 . Engine 5 | 1 4 . Core . | . . . Reactor . | . . . Propulsion 8 | 3 3 2 Treads . | . . . Leg . | . . . Wheel 8 | 3 3 2 Hover . | . . . Flight . | . . . Utility 7 | 2 5 . Device 3 | 1 2 . Storage 4 | 1 3 . Processor . | . . . Hackware . | . . . Protection . | . . . Artifact . | . . . Weapon 8 | 2 6 . Energy Gun 2 | 2 . . Energy Cannon . | . . . Ballistic Gun 1 | . 1 . Ballistic Cannon . | . . . Launcher . | . . . Special Weapon 4 | . 4 . Impact Weapon . | . . . Slashing Weapon . | . . . Piercing Weapon . | . . . Special Melee Weapon 1 | . 1 . Unidentified Prototypes . | . . . Parts Lost 9 | . 6 3 Power 1 | . 1 . Propulsion 1 | . . 1 Utility 1 | . 1 . Weapon 6 | . 4 2 Highest Loss Streak 3 | . 3 3 Average Slot Usage (%) 95 | . 95 95 Engine 13 | . 13 14 Wheel 28 | . 28 28 Device 12 | . 12 14 Storage 14 | . 14 14 Energy Gun 5 | . 7 . Ballistic Gun 3 | . 4 . Special Weapon 7 | . 6 11 Special Melee Weapon 9 | . 7 12 Naked Turns . | . . . Heaviest Build 24 | 12 24 24 Greatest Support 26 | 26 20 20 Greatest Overweight (x) 2 | . 1 2 Average Overweight (x) . | . . 1 Largest Inventory Capacity 10 | 6 10 10 Average Capacity 9 | 5 9 10 Most Carried 10 | 6 10 10 Average Carried 8 | 2 9 9 Final Capacity 10 | 6 10 10 Final Carried 10 | 6 10 9 Class Distribution -------------------- 62% | Mutant 37% | Scavenger-Mutant Dominant Class ---------------- Mutant | -10/Materials Scavenger-Mutant | -10/Mines Resources | -11 -10 -10 ----------- Run | Scr Mat Min Matter Collected 450 | 280 80 90 Remotely . | . . . Salvage Created 359 | 149 208 2 Parts 21 | 9 10 2 Haulers Intercepted . | . . . Recyclers Shooed 2 | 1 . 1 Parts Field Recycled . | . . . Retrieved Matter . | . . . Parts Self-Destructed . | . . . Prevented . | . . . Kills | -11 -10 -10 ------- Run | Scr Mat Min Combat Hostiles Destroyed 6 | . 6 . Guns 4 | . 4 . Cannons 2 | . 2 . Classes Destroyed 6 | 3 3 . Worker 2 | 1 . 1 Tunneler 2 | 2 . . Recycler 1 | 1 . . Watcher 1 | . 1 . Swarmer 1 | . 1 . Grunt 5 | . 5 . Best Kill Streak 4 | 2 4 1 Combat Bots Only 3 | . 3 . Max Kills in Single Turn 1 | 1 1 1 Gunslinging . | . . . Exploded . | . . . Melee . | . . . Uniques/NPCs Destroyed . | . . . Combat | -11 -10 -10 -------- Run | Scr Mat Min Damage Taken 866 | . 707 159 Core 260 | . 180 80 Absorbed by Shields . | . . . Core Remaining (%) 100 | 100 . . Volleys Fired 66 | 8 52 6 Largest 2 | 2 2 1 Hottest 100 | 80 100 100 Shots Fired 88 | 16 66 6 Gun 56 | 16 40 . Cannon . | . . . Launcher . | . . . Special 32 | . 26 6 Kinetic 15 | . 15 . Thermal 73 | 16 51 6 Explosive . | . . . Electromagnetic . | . . . Robot Hit Streak 17 | 15 17 2 Robot Miss Streak 2 | . 2 2 Penetration Max . | . . . Secondary Targets . | . . . Shots Hit Robots 75 | 15 56 4 Core Hits 25 | 5 19 1 Critical Hits . | . . . Critical Kills . | . . . Critical Parts Destroyed . | . . . Melee Attacks 13 | . 12 1 Impact . | . . . Slashing . | . . . Piercing . | . . . Sneak Attacks 8 | . 7 1 Combat Hostiles . | . . . Follow-up Attacks . | . . . Damage Inflicted 738 | 163 503 72 Guns 472 | 163 309 . Cannons . | . . . Explosions . | . . . Melee . | . . . Ramming . | . . . Kinetic 81 | . 81 . Thermal 657 | 163 422 72 Explosive . | . . . Electromagnetic . | . . . Impact . | . . . Slashing . | . . . Piercing . | . . . Highest Corruption . | . . . Average Corruption . | . . . Corruption Purged . | . . . Overload Shots . | . . . Overflow Damage . | . . . Projectiles . | . . . Explosions . | . . . Melee . | . . . Knockbacks . | . . . Impact . | . . . Kinetic . | . . . Secondary . | . . . Self-Inflicted Damage . | . . . Shots . | . . . Rammed . | . . . Targets Rammed . | . . . Kicked . | . . . Crushed . | . . . Highest Temperature 258 | 90 258 . Average Temperature 74 | 36 89 . Received Heat Transfer 390 | . 294 96 Siege Activations . | . . . Robots Corrupted . | . . . Combat Hostiles . | . . . Parts Fried . | . . . Impact Corruptions . | . . . Robots Melted . | . . . Combat Hostiles . | . . . Parts Melted . | . . . Heat Transferred 1650 | 375 1125 150 Parts Sabotaged . | . . . Parts Stolen . | . . . Parts Stripped . | . . . Power Chain Reactions . | . . . Missiles Intercepted . | . . . Alert | -11 -10 -10 ------- Run | Scr Mat Min Peak Influence 204 | 20 204 46 Initial 13 | . 13 3 Average 53 | 6 82 9 Maximum Alert Level 1 | . 1 . Low Security (%) 98 | 100 97 100 Level 1 1 | . 2 . Level 2 . | . . . Level 3 . | . . . Level 4 . | . . . Level 5 . | . . . High Security . | . . . Max Security . | . . . Squads Dispatched 3 | . 3 . Investigation 1 | . 1 . Extermination . | . . . Reinforcement 2 | . 2 . Assault . | . . . Garrison . | . . . Intercept . | . . . Construction Impeded . | . . . Haulers Reinforced . | . . . Stealth | -11 -10 -10 --------- Run | Scr Mat Min Distress Signals . | . . . Communications Jammed . | . . . Distress Signals . | . . . Times Spotted 24 | . 19 5 Peak Tracking Total 5 | . 5 4 Tactical Retreats 2 | . 1 1 Traps | -11 -10 -10 ------- Run | Scr Mat Min Traps Triggered 1 | . 1 . Indirectly . | . . . Trap Hack Attempts . | . . . Triggered . | . . . Disarmed . | . . . Reprogrammed . | . . . Reused . | . . . Traps Extracted . | . . . Installed . | . . . Triggered . | . . . Machines | -11 -10 -10 ---------- Run | Scr Mat Min Machines Disabled 1 | . . 1 Max in Single Turn 1 | . . 1 Machines Sabotaged . | . . . Garrisons Compromised . | . . . Overloaded Fab Kills . | . . . Fab Network Shutdowns . | . . . Hacking | -11 -10 -10 --------- Run | Scr Mat Min Machines Accessed 8 | . 7 1 Terminals 6 | . 5 1 Fabricators . | . . . Repair Stations . | . . . Recycling Units 2 | . 2 . Scanalyzers . | . . . Garrison Access . | . . . Total Hacks 22 | . 20 2 Successful 14 | . 12 2 Failed 8 | . 8 . Catastrophic 1 | . 1 . Database Lockouts . | . . . Manual 15 | . 14 1 Terminals 15 | . 13 2 Fabricators . | . . . Repair Stations . | . . . Recycling Units 7 | . 7 . Scanalyzers . | . . . Garrison Access . | . . . Terminal Hacks 6 | . 4 2 Robot Analysis 2 | . 2 . Branch Access Points 1 | . . 1 Terminal Index 1 | . 1 . Alert Level 1 | . 1 . Zone Layout 1 | . . 1 Fabricator Hacks . | . . . Repair Station Hacks . | . . . Recycling Unit Hacks 2 | . 2 . Retrieve Components 2 | . 2 . Scanalyzer . | . . . Garrison Access Hacks . | . . . Unauthorized Hacks 6 | . 6 . Terminals 4 | . 4 . Track 1 | . 1 . Botnet 3 | . 3 . Fabricators . | . . . Repair Stations . | . . . Recycling Units 2 | . 2 . Mask 2 | . 2 . Scanalyzers . | . . . Garrison Access . | . . . Data Cores Recovered . | . . . Used . | . . . Hacking Detections 7 | . 6 1 Full Trace Events . | . . . Feedback Events . | . . . Feedback Blocked . | . . . Robot Schematics Acquired . | . . . Robots Built . | . . . Matter . | . . . Time . | . . . Total Robot Build Rating . | . . . Part Schematics Acquired . | . . . Parts Built . | . . . Matter . | . . . Time . | . . . Total Part Build Rating . | . . . Parts Repaired . | . . . Time . | . . . Parts Recycled . | . . . Recycled Matter . | . . . Retrieved Matter . | . . . Retrieved Components 3 | . 3 . Parts Scanalyzed . | . . . Part Schematics Acquired . | . . . Parts Damaged . | . . . Bothacking | -11 -10 -10 ------------ Run | Scr Mat Min Used RIF Installer . | . . . Robots Hacked 6 | . 5 1 Non-combat 5 | . 4 1 Combat 1 | . 1 . Robot Hacks Applied 10 | . 9 1 parse_system 4 | . 4 . no_distress 4 | . 3 1 find_recycling 2 | . 2 . Relay Couplers Released . | . . . Robots Rewired . | . . . Allies Hacked . | . . . Hacks Repelled . | . . . Allies | -11 -10 -10 -------- Run | Scr Mat Min Total Allies . | . . . Largest Group . | . . . Highest-Rated Group . | . . . Highest-Rated Ally . | . . . Total Orders . | . . . Ally Attacks . | . . . Total Damage . | . . . Kills . | . . . Allies Corrupted . | . . . Allies Melted . | . . . Intel | -11 -10 -10 ------- Run | Scr Mat Min Robot Analysis Total 2 | . 2 . Derelict Logs Recovered 1 | . . 1 Drone Launches . | . . . Drone Recoveries . | . . . Exploration | -11 -10 -10 ------------- Run | Scr Mat Min Turns Passed 952 | 136 573 243 Spaces Moved 767 | 109 419 239 Core 1 | 1 . . Treads . | . . . Legs . | . . . Wheels 766 | 108 419 239 Hover . | . . . Flight . | . . . Fastest Speed 50 | 50 80 90 Average Speed 88 | 85 88 90 Slowest Speed 100 | 100 90 100 Overloaded Moves . | . . . Propulsion Burnouts . | . . . Robots Hopped . | . . . Cave-ins Triggered . | . . . Exploration Rate (%) 36 | 5 61 44 Regions Visited 2 Branch Regions 1 Pre-discovered Areas . | . . . Known Exits Taken . | . . . Unknown Exits Taken 2 | 1 1 . Scrap Searched 2 | . . 2 Spaces Dug . | . . . Terrain Destroyed 1 | . . 1 Melee . | . . . Projectile 1 | . . 1 AOE . | . . . Terrain Rammed . | . . . Walls Destroyed . | . . . Machines Disabled . | . . . Actions | -11 -10 -10 --------- Run | Scr Mat Min Total 908 | 131 528 249 Wait 11 | . 11 . Move 765 | 108 418 239 Hop . | . . . Pick Up 14 | 6 8 . Fast Attach 12 | 7 5 . Attach 3 | . 2 1 Detach . | . . . Swap 13 | 1 11 1 Drop 11 | 1 9 1 Fire 66 | 8 52 6 Melee 13 | . 12 1 Ram . | . . . Kick . | . . . Crush . | . . . Escape Stasis . | . . . Rewire . | . . . Trap . | . . . Miscellaneous . | . . . Route ------- -11/Scrapyard -10/Materials (discovered 3 exits: [*Mat] / *Min x2) -10/Mines (discovered 1 exit: [*Mat]) History --------- Turn | Location | Event 2 | -11/Scrapyard | Met Revision 17 21 | -11/Scrapyard | Discovered new exit (range 14) 137 | -11/Scrapyard | Entered Materials 298 | -10/Materials | Discovered new exit (range 16) 308 | -10/Materials | Build established: Mutant 384 | -10/Materials | Discovered new exit (range 16) 453 | -10/Materials | Core integrity fell below 50% 488 | -10/Materials | Lost 3 parts (1p1u1w) 699 | -10/Materials | Discovered new exit (range 5) 710 | -10/Materials | Entered Mines 879 | -10/Mines | Build established: Scavenger-Mutant 890 | -10/Mines | Discovered new exit (range 6) 906 | -10/Mines | Core integrity fell below 20% 919 | -10/Mines | Learned 2 Materials zone layouts 953 | -10/Mines | Destroyed by G-47 Trooper with Particle Gun Last Messages --------------- 00912_ Current location identified: Mines >>Layout(Zone) Retrieving Zone 5U layout... Downloaded map data. >>Access(Branch) No branch access points found. 00919_ Acquired derelict log, extracted data. Data stored: Materials zone layouts (x2). 00921_ Wheel destroyed. 00924_ Datajack destroyed. 00939_ Searching scrap... 00939_ Found Lgt. Treads. 00939_ Found 14 Matter. 00939_ Found 31 Matter. 00940_ Acquired 31 matter. 00940_ Acquired 1 matter. 00953_ Searching scrap... 00953_ Found Mining Laser. 00953_ Found Tractor Beam. 00953_ Found 22 Matter. Map ----- +----------------------------------------------------+ | | | | | | | | | | | | | | | | | | | | | | | | | | | | | | | | | | | ?????????????????????????????????????????????????? | | ?????????????????????????????????????????????????? | | ?????????????????????????????????????????########? | | ????????????????????????????????????#### # | | ????????????????????????????????????# % # | | ????????????????????????????????????#=## # | | ????????????????????????????????????# #??? # | | ???????????????????????############## #?????###### | | ???????????????????????# @%! g #??????????? | | ???????????????????????# ############ #??????????? | | ?????????????????????? ???????????# #?#####????? | | ?????????????????????###????????????# ### ##???? | | ????????????????????????????????????# ###?? | | ????????????????????????????????????##### ##? | | ????????????????????????????????????????## ## | | ?????????????????????????????????????????### # | | ???????????????????????????????????##??????## # | | ??????????????????????????????????? ##??????# # | | ??????????????????????????????????? #??????### # | | ??????????????????????????????????? #????????# # | | ??????????????????????????????????? #????????# # | | ??????????????????????????????????? ##????????# # | | ???????????????????????????????????##?????????# # | | ???????????????????????????????????###????????# # | | ??????????????????????????????????? #????????# # | | ???????????????????????????????????# #????????# # | | ???????????????????????????????????# #??####### # | | ???????????????????????????????????# #??# | | ???????????????????????????????????# #??# """ | | ???????????????????????????????##### #### """ | | ??????????????????????????????## < """ | | ?????????????????????????????## | | ?????????????????????????????# ##### """ """ | +----------------------------------------------------+ Best States ------------- Heat Dissipation 39 Energy Generation 10 Energy Capacity 250 Matter Stores 300 Matter Capacity 300 Sight Range 16 Terrain Scan Range 16 Terrain Scan Density 10 Evasion (%) 44 Item Schematics ----------------- None Robot Schematics ------------------ None Fabricated ------------ Nothing Alien Tech Used ----------------- None Achievements -------------- None Challenges ------------ None Game ------ Seed TeslaThunderCutter Manual? 0 Play Time 00:13:58 Cumulative 30.3 hours Start 2022.02.04 @ 09:28:52 End 2022.02.04 @ 09:41:20 Sessions 1 Manual Loads 0 Difficulty Rogue Special Mode None Game No. 46 Rogue 46 Adventurer 0 Explorer 0 Win Type - Total 0 Types 0/0/0/0/0/0/0/0/0 Lore% 45 Gallery% 42 Achievement% 35 Wizard Run 0 Options --------- ASCII 0 Keyboard 0 Movement Numpad Keybinds 0 Fullscreen 1 Font 24/Smallcaps Map View 76x50 Tactical HUD 1 Map Filters NONE Filters NONE Steam 1 RUN: 64686f3a-ee36-47d9-ab5a-7b2019ded271